bitfinex-derivatives/quotes_SOLF0:USTF0_20240829
["timestamp","ask_amount","ask_price","bid_price","bid_amount"]
[1724956969313,3.59868664,140.96,140.94,0.05422237]
[1724956969709,0.05288664,140.96,140.94,0.05422237]
[1724956970108,34.11288664,140.96,140.94,0.05422237]
[1724956970307,3.5461,140.95,140.94,0.05422237]
[1724956970511,34.11288664,140.96,140.88,4.9073]
[1724956970512,34.06,140.96,140.88,4.9073]
[1724956970715,34.06,140.93,140.88,1.3595]
[1724956971013,3.5469,140.92,140.88,4.9072]
[1724956971504,3.5473,140.9,140.89,0.04847545]
[1724956972017,3.5462,140.95,140.9,3.5473]
[1724956972399,34.06,140.97,140.89,7.08847545]
[1724956972600,34.06,140.97,140.9,3.5473]
[1724956972802,34.06,140.97,140.89,8.3201]
[1724956973009,0.05325449,140.94,140.92,0.047773]
[1724956975515,0.05325449,140.94,140.92,3.594573]
[1724956975706,0.05325449,140.94,140.92,0.047773]
[1724956976111,3.5466,140.93,140.92,0.047773]
[1724956978510,0.05325449,140.94,140.92,0.047773]
[1724956980320,3.59965449,140.94,140.92,0.047773]
[1724956980631,0.05325449,140.94,140.92,0.047773]
[1724956980927,3.5466,140.93,140.92,0.047773]
[1724956983314,34.06,140.93,140.78,59.70357452]
[1724956983623,34.06,140.88,140.79,2.6226]
[1724956983929,3.5493,140.82,140.76,3.5507]
[1724956984225,34.06,140.85,140.75,7.46157608]
[1724956984416,0.04926732,140.8,140.78,0.04771698]
[1724956984623,34.06,140.79,140.67,34.06]
[1724956984820,34.06,140.79,140.68,6.78]
[1724956985013,34.06,140.79,140.67,34.06]
[1724956985221,34.06,140.77,140.65,38.0693]
[1724956985421,34.06,140.77,140.66,6.78]
[1724956985722,0.04546668,140.73,140.7,0.04971848]
[1724956989125,3.59726668,140.73,140.7,0.04971848]
[1724956989529,3.5519,140.72,140.7,0.04971848]
[1724956989923,0.04546668,140.73,140.7,0.04971848]
[1724956990825,0.04546668,140.73,140.71,3.48317872]
[1724956991233,87.51316177,140.84,140.71,3.48317872]
[1724956991234,40.86,140.82,140.71,3.48317872]
[1724956991729,34.06,140.82,140.71,37.54673081]
[1724956991919,34.06,140.82,140.71,34.06]
[1724956992130,0.04564363,140.78,140.75,0.05338101]
[1724956993618,3.59604363,140.78,140.75,0.05338101]
[1724956993825,34.10564363,140.78,140.75,0.05338101]
[1724956994132,34.06,140.76,140.69,3.5526]
[1724956994322,34.06,140.73,140.64,8.1209]
[1724956995229,0.04547658,140.7,140.68,0.04703023]
[1724956995438,0.04547658,140.7,140.68,0.05325159]
[1724956995439,0.04916325,140.7,140.68,0.05325159]
[1724956995932,0.04916325,140.7,140.69,3.5526]
[1724956996526,0.04916325,140.7,140.68,3.60615159]
[1724956997229,34.06,140.77,140.68,0.05325159]
[1724956997536,34.06,140.77,140.67,34.06]
[1724956997835,3.5514,140.74,140.65,36.7074]
[1724956998025,34.06,140.77,140.65,36.7074]
[1724956998231,7.0924,140.95,140.74,34.06]
[1724956998434,0.04893408,140.85,140.83,0.05220953]
[1724956998626,34.10780288,140.85,140.83,0.0527215]
[1724956998932,3.5488,140.84,140.83,0.0527215]
[1724956999932,34.06,140.85,140.74,6.8]
[1724957000133,6.8,140.87,140.68,6.8]
[1724957000134,34.06,140.79,140.68,6.8]
[1724957000336,34.06,140.79,140.69,34.06]
[1724957000528,3.55,140.8,140.71,34.06]
[1724957000833,6.8,140.82,140.73,34.06]
[1724957001030,0.0508647,140.79,140.76,0.04911686]
[1724957002340,34.1108647,140.79,140.76,0.04911686]
[1724957002735,3.5506,140.77,140.76,0.04911686]
[1724957002936,0.0508647,140.79,140.76,0.04911686]
[1724957003433,3.6011647,140.79,140.76,0.04911686]
[1724957003633,0.0508647,140.79,140.76,0.04911686]
[1724957004234,3.5504,140.78,140.76,0.04911686]
[1724957005038,0.0508647,140.79,140.76,0.04911686]
[1724957005039,3.5506,140.77,140.76,0.04911686]
[1724957006135,3.5504,140.78,140.76,0.04911686]
[1724957006443,0.0508647,140.79,140.76,0.04911686]
[1724957006753,3.6011647,140.79,140.76,0.04911686]
[1724957007040,34.1108647,140.79,140.76,0.04911686]
[1724957007341,3.5506,140.77,140.76,0.04911686]
[1724957008144,3.5514,140.74,140.7,6.8]
[1724957008440,34.06,140.79,140.7,10.3521]
[1724957008649,34.06,140.79,140.7,6.8]
[1724957008848,34.06,140.79,140.67,36.7342]
[1724957009139,0.04681921,140.74,140.72,0.04519571]
[1724957009340,0.05066817,140.74,140.72,3.59689571]
[1724957009540,0.05066817,140.74,140.72,0.04519571]
[1724957012249,34.06,140.83,140.73,34.06]
[1724957012436,34.06,140.83,140.74,2.7346]
[1724957012829,3.5503,140.79,140.75,3.551]
[1724957013233,34.06,140.83,140.71,34.06]
[1724957013234,37.6106,140.77,140.76,0.05318395]
[1724957014641,0.04940279,140.78,140.76,0.05318395]
[1724957014848,0.04940279,140.78,140.77,3.5506]
[1724957015038,92.38461451,140.84,140.76,0.05318395]
[1724957015239,34.06,140.86,140.77,34.06]
[1724957015441,34.06,140.86,140.74,43.6211]
[1724957015836,34.06,140.84,140.76,3.5507]
[1724957016043,34.06,140.81,140.74,9.5611]
[1724957016239,3.5499,140.8,140.79,0.05218595]
[1724957016442,3.5499,140.8,140.78,0.04843191]
[1724957016737,3.5501,140.79,140.78,0.04843191]
[1724957016943,34.10748412,140.81,140.78,0.04843191]
[1724957017349,3.5501,140.79,140.78,0.04843191]
[1724957018246,3.5499,140.8,140.78,0.04843191]
[1724957018547,34.10748412,140.81,140.78,0.04843191]
[1724957019336,0.04748412,140.81,140.78,0.04843191]
[1724957022036,0.04748412,140.81,140.72,42.2026]
[1724957022037,34.06,140.79,140.72,1.2826]
[1724957022648,34.06,140.79,140.69,6.86]
[1724957022853,34.06,140.79,140.7,1.397]
[1724957023155,3.5505,140.78,140.73,3.5514]
[1724957023450,0.05100581,140.76,140.74,1.3454]
[1724957023639,0.0511735,140.76,140.74,1.39047103]
[1724957024445,3.6021735,140.76,140.74,1.39047103]
[1724957024653,0.0511735,140.76,140.74,0.04507103]
[1724957024841,34.06,140.75,140.74,0.04507103]
[1724957025047,37.6111,140.75,140.74,0.04507103]
[1724957025654,3.5511,140.75,140.74,0.04507103]
[1724957026153,0.0511735,140.76,140.74,0.04507103]
[1724957027157,34.06,140.81,140.74,0.04507103]
[1724957027351,34.06,140.81,140.72,2.6363]
[1724957027852,3.5503,140.79,140.74,3.5512]
[1724957028053,34.06,140.81,140.72,2.6363]
[1724957028255,0.05125978,140.78,140.75,0.04799801]
[1724957028454,3.5512,140.75,140.72,1.3188]
[1724957028655,0.05066048,140.75,140.72,1.36368137]
[1724957028956,0.05066048,140.75,140.72,4.91538137]
[1724957029751,0.05066048,140.75,140.72,0.04488137]
[1724957030159,0.05066048,140.75,140.72,3.59668137]
[1724957030361,0.05066048,140.75,140.72,0.04488137]
[1724957030660,0.05066048,140.75,140.73,3.5514]
[1724957031653,0.05066048,140.75,140.72,0.04488137]
[1724957032062,34.06,140.81,140.72,0.04488137]
[1724957032358,34.06,140.81,140.72,1.2821]
[1724957032553,3.5505,140.78,140.74,3.5514]
[1724957032748,34.06,140.81,140.72,1.2821]
[1724957032962,34.06,140.83,140.72,1.2821]
[1724957033259,0.04969591,140.79,140.76,0.04910469]
[1724957033557,34.06,140.85,140.77,6.86]
[1724957033754,3.5489,140.84,140.79,3.55]
[1724957033949,34.06,140.85,140.78,1.3569]
[1724957034261,3.5493,140.83,140.78,4.907]
[1724957034461,34.06,140.85,140.78,1.3569]
[1724957034650,0.05307946,140.82,140.79,0.04610003]
[1724957034858,81.21020124,140.91,140.81,3.5494]
[1724957034859,34.06,140.89,140.81,3.5494]
[1724957035662,34.06,140.87,140.8,3.5496]
[1724957035865,0.04531528,140.85,140.82,0.05246064]
[1724957036955,3.59411528,140.85,140.82,0.05246064]
[1724957037461,0.04531528,140.85,140.82,0.05246064]
[1724957038966,0.04531528,140.85,140.82,3.60176064]
[1724957039358,0.04531528,140.85,140.82,0.05246064]
[1724957039557,0.04531528,140.85,140.82,3.60176064]
[1724957039955,0.04531528,140.85,140.82,0.05246064]
[1724957040157,0.04531528,140.85,140.82,3.60176064]
[1724957040368,0.04531528,140.85,140.82,0.05246064]
[1724957040662,3.5479,140.88,140.8,42.2182]
[1724957040870,34.06,140.86,140.8,1.2982]
[1724957041063,34.06,140.84,140.78,1.3569]
[1724957041264,91.64471615,140.91,140.75,8.1236]
[1724957041567,34.06,140.81,140.75,1.2636]
[1724957041865,0.04598873,140.79,140.77,0.05430972]
[1724957042173,0.05225766,140.79,140.77,0.0495809]
[1724957043259,40.92,140.85,140.77,0.0495809]
[1724957043466,40.92,140.85,140.77,3.6000809]
[1724957043660,34.06,140.85,140.77,3.6000809]
[1724957044060,3.5496,140.82,140.77,3.6000809]
[1724957044260,3.5496,140.82,140.78,3.5503]
[1724957044457,0.04926645,140.81,140.78,3.5503]
[1724957045064,0.04926645,140.81,140.77,0.0495809]
[1724957045560,0.04926645,140.81,140.79,3.55]
[1724957045766,34.06,140.87,140.79,3.56391629]
[1724957045958,34.06,140.87,140.76,34.06]
[1724957046158,34.06,140.87,140.79,6.9]
[1724957046358,34.06,140.87,140.79,10.41102024]
[1724957046573,34.06,140.87,140.79,6.9]
[1724957046758,0.04688849,140.84,140.82,0.04997156]
[1724957046963,0.04638458,140.84,140.82,0.04997156]
[1724957047164,3.5491,140.83,140.82,0.04997156]
[1724957048169,37.6091,140.83,140.82,0.04997156]
[1724957048366,3.5491,140.83,140.82,0.04997156]
[1724957048565,3.5503,140.78,140.63,10.64009973]
[1724957048769,34.06,140.77,140.69,2.6775]
[1724957049066,3.5521,140.72,140.69,2.6775]
[1724957049267,34.06,140.77,140.69,2.6775]
[1724957049777,0.04499402,140.74,140.72,0.04723046]
[1724957050272,3.59649402,140.74,140.72,0.04723046]
[1724957050477,0.04499402,140.74,140.72,0.04723046]
[1724957050671,3.59649402,140.74,140.72,0.04723046]
[1724957050876,0.04499402,140.74,140.72,0.04723046]
[1724957051378,3.5516,140.73,140.72,0.04723046]
[1724957056882,3.5528,140.69,140.64,2.6823]
[1724957057089,34.06,140.73,140.65,3.5536]
[1724957057487,34.06,140.73,140.64,9.5823]
[1724957057681,34.06,140.73,140.64,13.1361]
[1724957057883,0.04967933,140.7,140.67,0.04585101]
[1724957058082,3.5527,140.69,140.67,0.04585101]
[1724957058691,0.04967933,140.7,140.67,0.04585101]
[1724957059688,3.5529,140.68,140.67,0.04585101]
[1724957060583,3.5539,140.65,140.61,3.62852231]
[1724957061181,3.5533,140.67,140.62,3.5542]
[1724957061684,0.04519907,140.66,140.63,0.04496296]
[1724957061886,0.04519907,140.66,140.64,3.5538]
[1724957062582,0.04519907,140.66,140.63,3.5793797]
[1724957062790,0.04519907,140.66,140.63,0.04496296]
[1724957063181,3.59879907,140.66,140.63,0.04496296]
[1724957064284,3.5536,140.65,140.63,0.04496296]
[1724957064484,0.04519907,140.66,140.63,0.04496296]
[1724957064689,0.04519907,140.66,140.63,3.59886296]
[1724957065388,0.04519907,140.66,140.64,3.5539]
[1724957065585,0.04519907,140.66,140.63,0.04496296]
[1724957065786,41.722,140.77,140.64,34.06]
[1724957065991,34.06,140.75,140.65,1.3825]
[1724957066579,34.06,140.73,140.62,3.47934139]
[1724957066781,34.06,140.73,140.59,2.758]
[1724957066782,0.04967034,140.69,140.66,0.04919657]
[1724957066982,3.5529,140.68,140.66,0.04919657]
[1724957067288,0.04967034,140.69,140.66,0.04919657]
[1724957069886,3.5531,140.67,140.66,0.04919657]
[1724957070187,0.04967034,140.69,140.66,0.04919657]
[1724957070396,3.553,140.68,140.66,0.04919657]
[1724957071084,3.5531,140.67,140.66,0.04919657]
[1724957071482,3.553,140.68,140.66,0.04919657]
[1724957072085,3.5529,140.68,140.66,0.04919657]
[1724957072389,0.04967034,140.69,140.66,0.04919657]
[1724957073691,3.60247034,140.69,140.66,0.04919657]
[1724957074090,0.04967034,140.69,140.66,0.04919657]
[1724957074391,0.04967034,140.69,140.68,3.5529]
[1724957074593,0.04967034,140.69,140.66,0.04919657]
[1724957074998,0.04967034,140.69,140.67,3.553]
[1724957075286,0.04967034,140.69,140.66,0.04919657]
[1724957075493,0.04967034,140.69,140.67,3.5531]
[1724957075698,0.04967034,140.69,140.66,0.04919657]
[1724957076194,0.04967034,140.69,140.67,3.5531]
[1724957076491,0.04967034,140.69,140.66,0.04919657]
[1724957076897,0.04967034,140.69,140.66,2.68729657]
[1724957077091,0.04967034,140.69,140.66,36.74729657]
[1724957077394,0.04967034,140.69,140.68,3.5529]
[1724957079196,0.04967034,140.69,140.66,0.04919657]
[1724957079593,3.553,140.68,140.66,0.04919657]
[1724957079791,0.04967034,140.69,140.66,0.04919657]
[1724957080092,3.5529,140.68,140.66,0.04919657]
[1724957080291,0.04967034,140.69,140.66,0.04919657]
[1724957080693,3.5529,140.68,140.66,0.04919657]
[1724957081391,3.5531,140.67,140.66,0.04919657]
[1724957082394,0.04967034,140.69,140.66,0.04919657]
[1724957082995,0.04967034,140.69,140.68,3.5529]
[1724957083693,34.822,140.77,140.71,3.5521]
[1724957083900,34.822,140.77,140.67,34.06]
[1724957084193,3.5515,140.74,140.7,3.5523]
[1724957084403,34.822,140.77,140.68,1.287]
[1724957084605,34.06,140.75,140.68,1.287]
[1724957084900,0.0518717,140.73,140.7,0.0472218]
[1724957085498,0.0518717,140.73,140.7,3.5994218]
[1724957086199,0.0518717,140.73,140.7,0.0472218]
[1724957086701,0.0518717,140.73,140.71,3.5519]
[1724957086889,0.0518717,140.73,140.7,0.0472218]
[1724957087086,0.0518717,140.73,140.71,3.5521]
[1724957087594,0.0518717,140.73,140.7,0.0472218]
[1724957087996,0.0518717,140.73,140.71,3.552]
[1724957088197,0.0518717,140.73,140.7,0.0472218]
[1724957088695,0.0518717,140.73,140.7,3.5994218]
[1724957089594,0.0518717,140.73,140.71,3.552]
[1724957090793,0.0518717,140.73,140.71,3.60698919]
[1724957092398,0.0518717,140.73,140.72,3.5519]
[1724957092899,0.0518717,140.73,140.7,0.0472218]
[1724957093390,3.5521,140.71,140.7,0.0472218]
[1724957093788,0.0518717,140.73,140.7,0.0472218]
[1724957093998,3.5519,140.72,140.7,0.0472218]
[1724957094194,0.0518717,140.73,140.7,0.0472218]
[1724957095096,3.6036717,140.73,140.7,0.0472218]
[1724957095894,0.0518717,140.73,140.7,0.0472218]
[1724957096198,34.1118717,140.73,140.7,0.0472218]
[1724957096699,0.0518717,140.73,140.7,0.0472218]
[1724957097101,3.6036717,140.73,140.7,0.0472218]
[1724957097488,0.0518717,140.73,140.7,0.0472218]
[1724957098096,0.0518717,140.73,140.7,3.5995218]
[1724957098900,0.0518717,140.73,140.72,3.5519]
[1724957099293,0.0518717,140.73,140.7,0.0472218]
[1724957099704,0.0518717,140.73,140.71,3.552]
[1724957100500,28.42,140.84,140.71,30.77345729]
[1724957100801,3.5505,140.78,140.73,3.5515]
[1724957101097,27.3,140.76,140.68,1.2848]
[1724957101298,27.3,140.74,140.67,4.9228]
[1724957101494,6.84,140.79,140.69,0.05027388]
[1724957101495,0.05312749,140.72,140.69,0.05027388]
[1724957101695,0.04890858,140.72,140.69,0.05232061]
[1724957102292,0.04890858,140.72,140.69,27.35232061]
[1724957102503,27.3,140.78,140.69,27.3]
[1724957102896,3.5506,140.77,140.73,3.5514]
[1724957103099,27.3,140.78,140.72,3.61479621]
[1724957103302,27.3,140.78,140.67,1.3699]
[1724957103505,27.3,140.74,140.67,1.3699]
[1724957103805,27.34704793,140.74,140.71,0.05114301]
[1724957104007,3.59844793,140.74,140.71,0.05114301]
[1724957104209,0.04704793,140.74,140.71,0.05114301]
[1724957105502,27.34704793,140.74,140.71,0.05114301]
[1724957106000,0.04704793,140.74,140.71,0.05114301]
[1724957106404,3.5519,140.72,140.71,0.05114301]
[1724957107501,27.3,140.73,140.66,1.3263]
[1724957107802,34.1,140.8,140.66,1.3263]
[1724957107803,27.3,140.75,140.66,1.3263]
[1724957108006,3.5522,140.71,140.66,8.34729596]
[1724957108207,27.3,140.73,140.64,9.3837]
[1724957108404,27.3,140.73,140.67,0.05166444]
[1724957108405,0.05373517,140.7,140.67,0.05166444]
[1724957108599,3.5529,140.68,140.67,0.05166444]
[1724957110503,3.5538,140.65,140.6,38.0023]
[1724957110706,27.3,140.69,140.6,36.685]
[1724957110909,27.3,140.71,140.62,3.5543]
[1724957111107,27.3,140.71,140.63,3.55761583]
[1724957111309,27.3,140.71,140.62,3.5542]
[1724957111504,0.04619561,140.68,140.65,0.05151737]
[1724957111700,27.3,140.67,140.6,1.2949]
[1724957112006,27.3,140.7,140.6,30.91553547]
[1724957112313,27.3,140.7,140.61,3.5545]
[1724957112504,27.3,140.7,140.62,3.46878204]
[1724957112706,0.04698183,140.67,140.65,0.04624191]
[1724957112908,0.04698183,140.67,140.65,3.59984191]
[1724957113110,3.5518,140.73,140.66,27.3]
[1724957113405,3.5518,140.73,140.69,3.5526]
[1724957113611,3.5521,140.72,140.67,2.5577]
[1724957113810,27.3,140.75,140.67,2.5577]
[1724957114010,27.3,140.75,140.67,6.1106]
[1724957114209,3.5523,140.71,140.7,0.04964281]
[1724957114419,27.3,140.71,140.62,3.48832547]
[1724957114620,27.3,140.68,140.62,3.48832547]
[1724957115018,27.3,140.7,140.62,3.48832547]
[1724957115321,27.3,140.7,140.62,7.04272547]
[1724957115612,0.04672152,140.67,140.65,0.05365858]
[1724957115916,3.5534,140.66,140.65,0.05365858]
[1724957116911,0.04672152,140.67,140.65,0.05365858]
[1724957117614,34.12,140.75,140.65,1.35895858]
[1724957117809,3.5521,140.71,140.66,1.3638]
[1724957118010,3.5521,140.71,140.67,3.553]
[1724957118211,34.12,140.75,140.66,1.3638]
[1724957118419,3.5528,140.69,140.61,37.62005153]
[1724957118721,0.04509942,140.67,140.64,0.04475419]
[1724957119520,3.5534,140.66,140.64,0.04475419]
[1724957119917,3.5536,140.65,140.64,0.04475419]
[1724957121427,0.04509942,140.67,140.64,0.04475419]
[1724957122918,0.04509942,140.67,140.65,3.5536]
[1724957123114,0.04509942,140.67,140.64,0.04475419]
[1724957123319,0.04509942,140.67,140.65,34.12]
[1724957123524,42.16,140.75,140.65,34.12]
[1724957124013,8.04,140.75,140.65,34.12]
[1724957124216,34.6163,140.79,140.67,34.12]
[1724957124422,34.6163,140.79,140.68,8.04]
[1724957124423,34.12,140.79,140.68,8.04]
[1724957124622,0.0472497,140.74,140.72,0.05450072]
[1724957124827,0.05310142,140.74,140.72,0.05450072]
[1724957125129,3.5516,140.73,140.72,0.05450072]
[1724957125828,34.12,140.73,140.62,4.0219]
[1724957126020,34.12,140.71,140.62,4.0219]
[1724957126329,34.12,140.71,140.62,7.5762]
[1724957126519,3.5527,140.69,140.62,4.0219]
[1724957126721,0.05335655,140.67,140.64,0.04905498]
[1724957127418,0.05335655,140.67,140.64,3.60265498]
[1724957128828,0.05335655,140.67,140.64,0.04905498]
[1724957130527,3.5536,140.66,140.64,0.04905498]
[1724957131530,3.5536,140.65,140.64,0.04905498]
[1724957132827,3.5534,140.66,140.64,0.04905498]
[1724957133125,0.05335655,140.67,140.64,0.04905498]
[1724957133530,3.5536,140.65,140.64,0.04905498]
[1724957135431,3.5534,140.66,140.64,0.04905498]
[1724957135634,0.05335655,140.67,140.64,0.04905498]
[1724957136534,3.60655655,140.67,140.64,0.04905498]
[1724957136729,0.05335655,140.67,140.64,0.04905498]
[1724957138025,3.5534,140.66,140.64,0.04905498]
[1724957138831,0.05335655,140.67,140.64,0.04905498]
[1724957139036,3.5536,140.65,140.64,0.04905498]
[1724957139333,0.05335655,140.67,140.64,0.04905498]
[1724957139635,3.5534,140.66,140.64,0.04905498]
[1724957139932,0.05335655,140.67,140.64,0.04905498]
[1724957140337,3.60665655,140.67,140.64,0.04905498]
[1724957140732,0.05335655,140.67,140.64,0.04905498]
[1724957141326,0.04134151,140.65,140.64,0.04905498]
[1724957142130,0.04134151,140.65,140.64,3.60295498]
[1724957142737,0.04134151,140.65,140.64,0.04905498]
[1724957143139,3.59494151,140.65,140.64,0.04905498]
[1724957144441,0.04134151,140.65,140.57,1.397]
[1724957144641,0.04134151,140.65,140.57,4.90309223]
[1724957144833,0.04134151,140.65,140.57,4.9526]
[1724957145139,0.04134151,140.65,140.57,1.397]
[1724957145345,3.5546,140.61,140.6,0.05036798]
[1724957145847,34.11,140.63,140.55,3.61875106]
[1724957146037,34.11,140.63,140.53,11.09314544]
[1724957146343,3.5552,140.59,140.53,11.10705169]
[1724957146541,34.11,140.63,140.53,11.10705169]
[1724957146743,0.04671112,140.59,140.57,0.04530635]
[1724957148044,0.04671112,140.59,140.57,3.60080635]
[1724957148244,0.04671112,140.59,140.57,0.04530635]
[1724957148641,3.5554,140.58,140.57,0.04530635]
[1724957149039,34.11,140.58,140.53,7.53664544]
[1724957149242,3.5564,140.55,140.53,7.53664544]
[1724957149641,42.6285,140.6,140.53,7.53664544]
[1724957150151,0.05033565,140.58,140.55,0.04513076]
[1724957150347,3.556,140.56,140.55,0.04513076]
[1724957150743,34.11,140.56,140.53,7.53664544]
[1724957151042,0.05033565,140.58,140.53,7.53664544]
[1724957151043,37.6664,140.54,140.53,7.53664544]
[1724957151247,37.72154292,140.54,140.32,7.095]
[1724957151542,34.11,140.48,140.39,1.278]
[1724957151943,0.04885442,140.45,140.42,0.05008868]
[1724957152540,3.5592,140.44,140.42,0.05008868]
[1724957153146,0.04885442,140.45,140.42,0.05008868]
[1724957153756,3.5589,140.44,140.42,0.05008868]
[1724957154049,0.04885442,140.45,140.42,0.05008868]
[1724957155443,7.92,140.44,140.42,0.05008868]
[1724957155837,3.5592,140.43,140.42,0.05008868]
[1724957160646,34.11,140.46,140.35,34.11]
[1724957160942,34.11,140.51,140.39,34.11]
[1724957161144,7.1105,140.59,140.35,1.3656]
[1724957161145,34.11,140.53,140.4,1.3346]
[1724957161348,7.92,140.52,140.43,3.5591]
[1724957161655,0.04793188,140.49,140.46,0.05281361]
[1724957162152,3.5582,140.47,140.46,0.05281361]
[1724957162536,0.04793188,140.49,140.46,0.05281361]
[1724957162939,80.55965509,140.55,140.47,34.11]
[1724957163145,80.55965509,140.55,140.48,1.2661]
[1724957163649,28.46,140.59,140.52,34.11]
[1724957163861,3.62912594,140.67,140.52,34.11]
[1724957163862,7.66,140.6,140.52,34.11]
[1724957164147,0.05147819,140.57,140.55,0.05366461]
[1724957164446,7.70134151,140.65,140.55,34.16366461]
[1724957164447,41.81134151,140.65,140.55,34.16366461]
[1724957164647,41.81134151,140.65,140.55,34.11]
[1724957164844,3.5542,140.63,140.55,34.11]
[1724957165047,0.04134151,140.65,140.55,34.11]
[1724957165351,0.04134151,140.65,140.57,34.11]
[1724957165541,0.04134151,140.65,140.52,41.77]
[1724957165542,0.0489486,140.61,140.59,0.05299227]
[1724957165742,31.81134151,140.72,140.6,34.11]
[1724957166048,34.11,140.73,140.62,34.11]
[1724957166340,41.77,140.73,140.6,34.11]
[1724957166540,34.11,140.71,140.6,34.11]
[1724957166741,0.04938961,140.67,140.64,0.04732214]
[1724957167749,84.1933291,140.78,140.64,0.04732214]
[1724957167750,34.11,140.75,140.65,34.11]
[1724957167948,41.77,140.75,140.65,34.11]
[1724957168143,3.5519,140.72,140.65,34.11]
[1724957168455,41.77,140.75,140.65,34.11]
[1724957168650,3.5519,140.72,140.65,34.11]
[1724957168947,0.04861191,140.7,140.67,0.05315637]
[1724957171150,3.5529,140.68,140.67,0.05315637]
[1724957171755,34.11,140.69,140.58,9.0166]
[1724957171956,34.11,140.66,140.58,1.3766]
[1724957172253,34.11,140.6,140.53,1.3102]
[1724957172641,34.11,140.64,140.53,1.3102]
[1724957172848,0.05130441,140.6,140.57,3.60843671]
[1724957173241,7.64,140.67,140.57,0.05283671]
[1724957173445,7.64,140.67,140.56,34.11]
[1724957173446,7.64,140.67,140.58,35.4122]
[1724957174045,3.5536,140.66,140.6,3.5547]
[1724957174246,0.05016146,140.64,140.62,0.0478613]
[1724957174451,3.5527,140.69,140.64,3.5539]
[1724957174654,7.64,140.72,140.63,34.11]
[1724957175057,3.5532,140.67,140.61,3.5544]
[1724957175249,34.11,140.71,140.6,34.11]
[1724957175650,3.5531,140.68,140.6,34.11]
[1724957175852,34.11,140.71,140.6,34.11]
[1724957176148,0.04749623,140.65,140.63,0.04554641]
[1724957176348,0.04531459,140.65,140.63,0.04554641]
[1724957176550,3.5516,140.74,140.67,3.5529]
[1724957176759,7.64,140.76,140.66,34.11]
[1724957176949,34.11,140.77,140.67,1.2857]
[1724957177248,3.552,140.72,140.67,1.2857]
[1724957177453,42.33,140.77,140.67,1.2857]
[1724957177454,34.11,140.74,140.67,1.2857]
[1724957177655,0.05125646,140.71,140.68,0.04979473]
[1724957178854,3.5526,140.7,140.68,0.04979473]
[1724957179052,34.11,140.7,140.68,0.04979473]
[1724957180048,3.5526,140.69,140.68,0.04979473]
[1724957180654,3.5534,140.66,140.6,3.5547]
[1724957181260,3.5539,140.64,140.59,4.87]
[1724957181554,34.11,140.67,140.59,1.3149]
[1724957181755,0.05464786,140.64,140.62,0.04552236]
[1724957181952,42.31,140.71,140.6,35.5041]
[1724957182154,34.11,140.71,140.6,35.5041]
[1724957182352,34.11,140.71,140.61,3.48668919]
[1724957182560,8.2,140.73,140.64,34.11]
[1724957182951,0.0544592,140.7,140.67,0.04531309]
[1724957183150,0.0541999,140.7,140.67,0.0530595]
[1724957184450,3.5514,140.74,140.67,0.0530595]
[1724957184758,80.61406612,140.78,140.68,40.91]
[1724957184950,3.5507,140.77,140.71,3.5519]
[1724957185149,80.61406612,140.78,140.7,40.91]
[1724957185357,40.91,140.82,140.71,3.57380624]
[1724957185560,0.0479883,140.78,140.75,0.0526547]
[1724957185860,36.64,140.84,140.75,1.38288099]
[1724957186053,8.2,140.84,140.76,3.5507]
[1724957186353,8.2,140.84,140.75,42.241]
[1724957186557,3.5488,140.85,140.78,3.5501]
[1724957186747,40.91,140.87,140.77,40.91]
[1724957186950,0.04610783,140.83,140.81,0.04572281]
[1724957187458,40.91,140.89,140.81,0.04572281]
[1724957187659,3.5485,140.86,140.79,3.5501]
[1724957187849,40.91,140.89,140.79,3.5501]
[1724957188053,40.91,140.87,140.76,1.3668]
[1724957188250,0.04719505,140.83,140.8,0.04766206]
[1724957188858,40.91,140.89,140.8,0.04766206]